[Event "*** SCC Grand Prix: Titled Tuesday Blitz"]
[Site "Chess.com"]
[Date "2020.06.02"]
[Round "4"]
[White "Jospem"]
[Black "csati17"]
[Result "1/2-1/2"]
[WhiteElo "2873"]
[BlackElo "2560"]
[TimeControl "180+1"]
[EndTime "10:40:36 PDT"]
[Termination "Game drawn by repetition"]

1. c4 {[%clk 0:03:00.9]} 1... e6 {[%clk 0:02:59.1]} 2. g3 {[%clk 0:03:01.2]}
2... d5 {[%clk 0:02:59.3]} 3. Nf3 {[%clk 0:03:02.1]} 3... Nf6 {[%clk 0:02:59.9]}
4. Bg2 {[%clk 0:03:03]} 4... Be7 {[%clk 0:03:00.5]} 5. O-O {[%clk 0:03:03.4]}
5... O-O {[%clk 0:03:01.1]} 6. b3 {[%clk 0:03:04.1]} 6... d4 {[%clk 0:03:01.6]}
7. e3 {[%clk 0:03:04.1]} 7... c5 {[%clk 0:03:01.9]} 8. exd4 {[%clk 0:03:05]}
8... cxd4 {[%clk 0:03:02.8]} 9. Bb2 {[%clk 0:03:05.8]} 9... Nc6 {[%clk
0:03:03.6]} 10. Re1 {[%clk 0:03:06.4]} 10... Ne8 {[%clk 0:03:02]} 11. Ne5 {[%clk
0:03:03.8]} 11... Nxe5 {[%clk 0:03:02.1]} 12. Rxe5 {[%clk 0:03:04.7]} 12... f6
{[%clk 0:02:58.8]} 13. Re1 {[%clk 0:03:04.9]} 13... e5 {[%clk 0:02:58.4]} 14.
Ba3 {[%clk 0:03:05]} 14... Bxa3 {[%clk 0:02:53.5]} 15. Nxa3 {[%clk 0:03:05.9]}
15... Nc7 {[%clk 0:02:39.5]} 16. d3 {[%clk 0:03:03.3]} 16... Qd6 {[%clk
0:02:35.7]} 17. Nc2 {[%clk 0:03:02.9]} 17... a5 {[%clk 0:02:32.7]} 18. a3 {[%clk
0:03:00.4]} 18... Bf5 {[%clk 0:01:57.8]} 19. Qd2 {[%clk 0:02:31.3]} 19... Ra7
{[%clk 0:01:33.4]} 20. b4 {[%clk 0:02:29.8]} 20... axb4 {[%clk 0:01:33.1]} 21.
axb4 {[%clk 0:02:30.7]} 21... Rfa8 {[%clk 0:01:33.3]} 22. Ra5 {[%clk 0:02:11.6]}
22... b6 {[%clk 0:01:23.3]} 23. c5 {[%clk 0:02:07.4]} 23... bxc5 {[%clk
0:01:21]} 24. Bxa8 {[%clk 0:02:06.8]} 24... Rxa5 {[%clk 0:01:20]} 25. bxa5
{[%clk 0:02:06.2]} 25... Nxa8 {[%clk 0:01:20.5]} 26. Na3 {[%clk 0:01:58.8]}
26... Qd5 {[%clk 0:00:56]} 27. Qc2 {[%clk 0:01:47.4]} 27... Qf3 {[%clk 0:00:37]}
28. Qd1 {[%clk 0:01:13.8]} 28... Qd5 {[%clk 0:00:31.2]} 29. Nc4 {[%clk
0:00:43.7]} 29... h6 {[%clk 0:00:17.3]} 30. Nb6 {[%clk 0:00:41.7]} 30... Nxb6
{[%clk 0:00:14]} 31. axb6 {[%clk 0:00:42.4]} 31... Kh7 {[%clk 0:00:13.4]} 32.
Qe2 {[%clk 0:00:21.3]} 32... Qc6 {[%clk 0:00:11.2]} 33. Rb1 {[%clk 0:00:19.8]}
33... e4 {[%clk 0:00:10.3]} 34. b7 {[%clk 0:00:16.4]} 34... exd3 {[%clk
0:00:10]} 35. Qh5 {[%clk 0:00:16.8]} 35... g6 {[%clk 0:00:06.5]} 36. Qxf5 {[%clk
0:00:16.4]} 36... gxf5 {[%clk 0:00:05.3]} 37. b8=Q {[%clk 0:00:16.9]} 37... d2
{[%clk 0:00:04.8]} 38. Rb7+ {[%clk 0:00:12.1]} 38... Kg6 {[%clk 0:00:05.1]} 39.
Qg8+ {[%clk 0:00:08.3]} 39... Kh5 {[%clk 0:00:05.5]} 40. Qf7+ {[%clk 0:00:04.8]}
40... Kg4 {[%clk 0:00:02]} 41. h3+ {[%clk 0:00:05]} 41... Kf3 {[%clk 0:00:02]}
42. Qh5+ {[%clk 0:00:04.9]} 42... Ke4 {[%clk 0:00:02.5]} 43. Re7+ {[%clk
0:00:04.9]} 43... Kd3 {[%clk 0:00:02.7]} 44. Qd1 {[%clk 0:00:02.4]} 44... Kc3
{[%clk 0:00:01.8]} 45. Ra7 {[%clk 0:00:02]} 45... Qb5 {[%clk 0:00:01.9]} 46.
Ra3+ {[%clk 0:00:02]} 46... Kc4 {[%clk 0:00:02.8]} 47. Qe2+ {[%clk 0:00:02.1]}
47... Kb4 {[%clk 0:00:03.3]} 48. Rb3+ {[%clk 0:00:01.6]} 48... Kxb3 {[%clk
0:00:04.2]} 49. Qxb5+ {[%clk 0:00:02.1]} 49... Kc2 {[%clk 0:00:05.1]} 50. Qc4+
{[%clk 0:00:02.6]} 50... Kb1 {[%clk 0:00:05.3]} 51. Qb3+ {[%clk 0:00:02.8]}
51... Kc1 {[%clk 0:00:05.6]} 52. Qa3+ {[%clk 0:00:03.4]} 52... Kc2 {[%clk
0:00:05.8]} 53. Qa2+ {[%clk 0:00:03.3]} 53... Kc1 {[%clk 0:00:05.9]} 54. Qc4+
{[%clk 0:00:03.6]} 54... Kb1 {[%clk 0:00:05.2]} 55. Qf1+ {[%clk 0:00:03.6]}
55... Kc2 {[%clk 0:00:05.1]} 56. Qe2 {[%clk 0:00:04.1]} 56... Kc1 {[%clk
0:00:05.3]} 57. Qc4+ {[%clk 0:00:04]} 57... Kb1 {[%clk 0:00:05.7]} 1/2-1/2

[Event "*** SCC Grand Prix: Titled Tuesday Blitz"]
[Site "Chess.com"]
[Date "2020.06.02"]
[Round "4"]
[White "Ba_clbaf_osed_ingo_3v21"]
[Black "DivyaDeshmukh23"]
[Result "0-1"]
[WhiteElo "2644"]
[BlackElo "2482"]
[TimeControl "180+1"]
[EndTime "10:40:36 PDT"]
[Termination "DivyaDeshmukh23 won by checkmate"]

1. d4 {[%clk 0:03:00.9]} 1... Nf6 {[%clk 0:02:59.8]} 2. c4 {[%clk 0:03:01]} 2...
e6 {[%clk 0:03:00.2]} 3. Nf3 {[%clk 0:03:00.3]} 3... Bb4+ {[%clk 0:02:58.5]} 4.
Nbd2 {[%clk 0:02:59.8]} 4... d5 {[%clk 0:02:55.1]} 5. Qa4+ {[%clk 0:02:58.7]}
5... Nc6 {[%clk 0:02:54.6]} 6. e3 {[%clk 0:02:56.7]} 6... O-O {[%clk 0:02:52.9]}
7. Bd3 {[%clk 0:02:55.8]} 7... dxc4 {[%clk 0:02:53.1]} 8. Bxc4 {[%clk
0:02:55.5]} 8... Bxd2+ {[%clk 0:02:49.4]} 9. Bxd2 {[%clk 0:02:54.9]} 9... Ne7
{[%clk 0:02:49.9]} 10. O-O {[%clk 0:02:52.4]} 10... b6 {[%clk 0:02:48.3]} 11.
Rac1 {[%clk 0:02:47.3]} 11... Bb7 {[%clk 0:02:42.2]} 12. Be2 {[%clk 0:02:47]}
12... Ned5 {[%clk 0:01:53.5]} 13. Qc2 {[%clk 0:02:42.1]} 13... Rc8 {[%clk
0:01:48.8]} 14. e4 {[%clk 0:02:36.1]} 14... Ne7 {[%clk 0:01:49.1]} 15. e5 {[%clk
0:02:28.6]} 15... Nfd5 {[%clk 0:01:49.3]} 16. b4 {[%clk 0:02:21.1]} 16... Nf5
{[%clk 0:01:46.4]} 17. Bd3 {[%clk 0:02:13.1]} 17... Nde7 {[%clk 0:01:35.7]} 18.
Be4 {[%clk 0:01:55.8]} 18... Bxe4 {[%clk 0:01:30.9]} 19. Qxe4 {[%clk 0:01:56.7]}
19... Qd5 {[%clk 0:01:31]} 20. Qxd5 {[%clk 0:01:51.1]} 20... Nxd5 {[%clk
0:01:31.9]} 21. g4 {[%clk 0:01:51.4]} 21... Nfe7 {[%clk 0:01:31.8]} 22. a3
{[%clk 0:01:39.6]} 22... Rfd8 {[%clk 0:01:27.9]} 23. Bg5 {[%clk 0:01:36.4]}
23... h6 {[%clk 0:01:25.9]} 24. Be3 {[%clk 0:01:34.3]} 24... c6 {[%clk
0:01:17.4]} 25. Rc2 {[%clk 0:01:31.8]} 25... a5 {[%clk 0:01:02.9]} 26. bxa5
{[%clk 0:01:30.5]} 26... bxa5 {[%clk 0:01:03.8]} 27. Nd2 {[%clk 0:01:15.3]}
27... Rb8 {[%clk 0:00:38.1]} 28. Nc4 {[%clk 0:01:15.1]} 28... Rb3 {[%clk
0:00:38.4]} 29. Nxa5 {[%clk 0:01:07.6]} 29... Rxa3 {[%clk 0:00:37.7]} 30. Nxc6
{[%clk 0:00:51.8]} 30... Nxc6 {[%clk 0:00:37.1]} 31. Rxc6 {[%clk 0:00:52.1]}
31... Nxe3 {[%clk 0:00:36.8]} 32. fxe3 {[%clk 0:00:52.4]} 32... Rxe3 {[%clk
0:00:37.7]} 33. Rc7 {[%clk 0:00:52.7]} 33... Rxd4 {[%clk 0:00:30.4]} 34. Rfxf7
{[%clk 0:00:32.2]} 34... Rxg4+ {[%clk 0:00:29.8]} 35. Kf2 {[%clk 0:00:31.8]}
35... Rxe5 {[%clk 0:00:30.1]} 36. Rfe7 {[%clk 0:00:20.9]} 36... Rg6 {[%clk
0:00:22.1]} 37. Rc8+ {[%clk 0:00:17]} 37... Kh7 {[%clk 0:00:22]} 38. Rc3 {[%clk
0:00:15.9]} 38... Rf6+ {[%clk 0:00:21.8]} 39. Kg3 {[%clk 0:00:14.3]} 39... Re1
{[%clk 0:00:19.1]} 40. h4 {[%clk 0:00:12.2]} 40... e5 {[%clk 0:00:18.7]} 41. Rc4
{[%clk 0:00:10.1]} 41... Re3+ {[%clk 0:00:10.8]} 42. Kg4 {[%clk 0:00:05.7]}
42... Rf1 {[%clk 0:00:06.7]} 43. Re6 {[%clk 0:00:03.7]} 43... Rg1+ {[%clk
0:00:03]} 44. Kf5 {[%clk 0:00:04.2]} 44... Rge1 {[%clk 0:00:03.1]} 45. Rc7
{[%clk 0:00:03.8]} 45... e4 {[%clk 0:00:02.9]} 46. Ree7 {[%clk 0:00:04.1]} 46...
Rf3+ {[%clk 0:00:03.2]} 47. Kg4 {[%clk 0:00:03.8]} 47... Rg1+ {[%clk 0:00:03.5]}
48. Kh5 {[%clk 0:00:03.2]} 48... Rf5# {[%clk 0:00:04.2]} 0-1

[Event "*** SCC Grand Prix: Titled Tuesday Blitz"]
[Site "Chess.com"]
[Date "2020.06.02"]
[Round "4"]
[White "Anna_ChessMate"]
[Black "Kaua18"]
[Result "1-0"]
[WhiteElo "2552"]
[BlackElo "2331"]
[TimeControl "180+1"]
[EndTime "10:40:36 PDT"]
[Termination "Anna_ChessMate won by checkmate"]

1. d4 {[%clk 0:03:00.9]} 1... Nf6 {[%clk 0:02:59.4]} 2. c4 {[%clk 0:03:01.1]}
2... e6 {[%clk 0:02:59.8]} 3. Nf3 {[%clk 0:03:00.1]} 3... b6 {[%clk 0:02:58.3]}
4. g3 {[%clk 0:02:59.6]} 4... Bb7 {[%clk 0:02:58.9]} 5. Bg2 {[%clk 0:02:59]}
5... Bb4+ {[%clk 0:02:59.4]} 6. Bd2 {[%clk 0:02:56]} 6... c5 {[%clk 0:02:59.2]}
7. O-O {[%clk 0:02:54.1]} 7... O-O {[%clk 0:02:58.5]} 8. Bxb4 {[%clk 0:02:53.5]}
8... cxb4 {[%clk 0:02:59.3]} 9. a3 {[%clk 0:02:51.9]} 9... bxa3 {[%clk
0:02:58.3]} 10. Nxa3 {[%clk 0:02:52.8]} 10... Qe7 {[%clk 0:02:56.5]} 11. Nb5
{[%clk 0:02:48.7]} 11... a6 {[%clk 0:02:56.6]} 12. Nc3 {[%clk 0:02:42.9]} 12...
d6 {[%clk 0:02:52.4]} 13. Qd3 {[%clk 0:02:39.2]} 13... Nbd7 {[%clk 0:02:51.9]}
14. e4 {[%clk 0:02:38.1]} 14... Rac8 {[%clk 0:02:51]} 15. Rfe1 {[%clk 0:02:38]}
15... h6 {[%clk 0:02:41.9]} 16. h3 {[%clk 0:02:33.5]} 16... Rfe8 {[%clk
0:02:36.6]} 17. g4 {[%clk 0:02:30.1]} 17... Nf8 {[%clk 0:02:32.7]} 18. b3 {[%clk
0:02:24.5]} 18... Ng6 {[%clk 0:02:32.3]} 19. Qd2 {[%clk 0:02:24.3]} 19... e5
{[%clk 0:02:22.6]} 20. Nd5 {[%clk 0:02:19.1]} 20... Bxd5 {[%clk 0:02:22.1]} 21.
exd5 {[%clk 0:02:19.5]} 21... Qc7 {[%clk 0:01:44.4]} 22. dxe5 {[%clk 0:02:17.7]}
22... Nxe5 {[%clk 0:01:43.2]} 23. Rxa6 {[%clk 0:02:07]} 23... b5 {[%clk
0:01:28]} 24. Nxe5 {[%clk 0:02:00.7]} 24... dxe5 {[%clk 0:01:28]} 25. Rxf6
{[%clk 0:01:55.9]} 25... gxf6 {[%clk 0:01:26.2]} 26. Qxh6 {[%clk 0:01:55.9]}
26... Qa5 {[%clk 0:01:01.8]} 27. Re3 {[%clk 0:01:34.7]} 27... e4 {[%clk
0:00:21.4]} 28. Bxe4 {[%clk 0:01:26.8]} 28... Qa1+ {[%clk 0:00:21.1]} 29. Kg2
{[%clk 0:01:24.8]} 29... Rxe4 {[%clk 0:00:17.1]} 30. Rxe4 {[%clk 0:01:25.7]}
30... bxc4 {[%clk 0:00:17.3]} 31. bxc4 {[%clk 0:01:26.4]} 31... Qc3 {[%clk
0:00:16.4]} 32. Qe3 {[%clk 0:01:20.6]} 32... Rxc4 {[%clk 0:00:11.3]} 33. Rxc4
{[%clk 0:00:46.5]} 33... Qxc4 {[%clk 0:00:11.6]} 34. Qf3 {[%clk 0:00:47.4]}
34... Kg7 {[%clk 0:00:11.4]} 35. d6 {[%clk 0:00:47.2]} 35... Qd4 {[%clk
0:00:11.5]} 36. Qc6 {[%clk 0:00:46.4]} 36... f5 {[%clk 0:00:10.8]} 37. d7 {[%clk
0:00:41.8]} 37... fxg4 {[%clk 0:00:10.2]} 38. h4 {[%clk 0:00:40.6]} 38... Qd1
{[%clk 0:00:07.7]} 39. Qc3+ {[%clk 0:00:35.9]} 39... Kg6 {[%clk 0:00:05.8]} 40.
Qc6+ {[%clk 0:00:28.5]} 40... f6 {[%clk 0:00:06.2]} 41. Qb5 {[%clk 0:00:19.8]}
41... f5 {[%clk 0:00:04.1]} 42. Qc6+ {[%clk 0:00:19]} 42... Kh5 {[%clk
0:00:04.2]} 43. Qc7 {[%clk 0:00:04.1]} 43... Qf3+ {[%clk 0:00:03]} 44. Kg1
{[%clk 0:00:04.3]} 44... Qd1+ {[%clk 0:00:02.9]} 45. Kh2 {[%clk 0:00:04.6]}
45... g3+ {[%clk 0:00:02.6]} 46. Qxg3 {[%clk 0:00:04.6]} 46... Qxd7 {[%clk
0:00:02.4]} 47. Qg5# {[%clk 0:00:05.1]} 1-0

[Event "*** SCC Grand Prix: Titled Tuesday Blitz"]
[Site "Chess.com"]
[Date "2020.06.02"]
[Round "4"]
[White "Gabrielian_Artur"]
[Black "SergeyKarjakin"]
[Result "0-1"]
[WhiteElo "2735"]
[BlackElo "2941"]
[TimeControl "180+1"]
[EndTime "10:40:39 PDT"]
[Termination "SergeyKarjakin won on time"]

1. e4 {[%clk 0:03:00.9]} 1... c5 {[%clk 0:02:52.9]} 2. Nc3 {[%clk 0:03:00.2]}
2... d6 {[%clk 0:02:52.7]} 3. d4 {[%clk 0:02:59.5]} 3... cxd4 {[%clk 0:02:52.3]}
4. Qxd4 {[%clk 0:02:59.3]} 4... Nf6 {[%clk 0:02:49]} 5. b3 {[%clk 0:02:58.4]}
5... Nc6 {[%clk 0:02:47.5]} 6. Qd2 {[%clk 0:02:58.3]} 6... g6 {[%clk 0:02:46.8]}
7. Bb2 {[%clk 0:02:57.6]} 7... Bg7 {[%clk 0:02:47.3]} 8. O-O-O {[%clk
0:02:57.1]} 8... O-O {[%clk 0:02:47.3]} 9. f3 {[%clk 0:02:57.1]} 9... Qa5 {[%clk
0:02:30.9]} 10. Kb1 {[%clk 0:02:56.8]} 10... Bd7 {[%clk 0:02:25.4]} 11. Nge2
{[%clk 0:02:55.9]} 11... Rac8 {[%clk 0:02:21]} 12. Nd5 {[%clk 0:02:47]} 12...
Qxd2 {[%clk 0:02:09.3]} 13. Nxf6+ {[%clk 0:02:09.7]} 13... Bxf6 {[%clk
0:02:10.2]} 14. Rxd2 {[%clk 0:02:09.5]} 14... Bxb2 {[%clk 0:01:57.7]} 15. Kxb2
{[%clk 0:02:09.2]} 15... Kg7 {[%clk 0:01:47.7]} 16. Nf4 {[%clk 0:02:07.5]} 16...
Be6 {[%clk 0:01:33]} 17. h4 {[%clk 0:02:04.9]} 17... h6 {[%clk 0:01:32.6]} 18.
Be2 {[%clk 0:02:02.6]} 18... Ne5 {[%clk 0:01:25.1]} 19. c4 {[%clk 0:01:57.7]}
19... g5 {[%clk 0:01:23.6]} 20. Nh5+ {[%clk 0:01:39.8]} 20... Kg6 {[%clk
0:01:23]} 21. g4 {[%clk 0:01:39.8]} 21... Rh8 {[%clk 0:01:12]} 22. Ng3 {[%clk
0:01:38.7]} 22... f6 {[%clk 0:01:03.8]} 23. h5+ {[%clk 0:01:29.2]} 23... Kf7
{[%clk 0:01:03.8]} 24. Rc1 {[%clk 0:01:28.6]} 24... a6 {[%clk 0:01:03]} 25. Nf1
{[%clk 0:01:24.6]} 25... Rc7 {[%clk 0:01:00.2]} 26. Ne3 {[%clk 0:01:24.4]} 26...
Rhc8 {[%clk 0:01:00.7]} 27. a4 {[%clk 0:01:24.1]} 27... b5 {[%clk 0:00:56.2]}
28. axb5 {[%clk 0:00:47.4]} 28... axb5 {[%clk 0:00:57.1]} 29. Rdc2 {[%clk
0:00:42.9]} 29... bxc4 {[%clk 0:00:57.5]} 30. Nxc4 {[%clk 0:00:28.8]} 30... Bxc4
{[%clk 0:00:37.6]} 31. bxc4 {[%clk 0:00:26]} 31... Ke6 {[%clk 0:00:32.3]} 32.
Rc3 {[%clk 0:00:22.4]} 32... Ra7 {[%clk 0:00:28.9]} 33. Ra3 {[%clk 0:00:20.2]}
33... Rxa3 {[%clk 0:00:22.6]} 34. Kxa3 {[%clk 0:00:20.4]} 34... Nc6 {[%clk
0:00:23.5]} 35. Rd1 {[%clk 0:00:16.6]} 35... Ke5 {[%clk 0:00:22.4]} 36. Kb2
{[%clk 0:00:15.1]} 36... Nd4 {[%clk 0:00:20.1]} 37. Bf1 {[%clk 0:00:09]} 37...
Nxf3 {[%clk 0:00:19.1]} 38. Kc3 {[%clk 0:00:08.5]} 38... Kf4 {[%clk 0:00:17.7]}
39. Rb1 {[%clk 0:00:07.4]} 39... Ne5 {[%clk 0:00:17.9]} 40. Rb7 {[%clk
0:00:06.5]} 40... Re8 {[%clk 0:00:17.2]} 41. c5 {[%clk 0:00:07]} 41... dxc5
{[%clk 0:00:17.2]} 42. Bb5 {[%clk 0:00:07.1]} 42... Rh8 {[%clk 0:00:15.5]} 43.
Rxe7 {[%clk 0:00:07.1]} 43... Kxg4 {[%clk 0:00:14.7]} 44. Re6 {[%clk 0:00:07.3]}
44... Rf8 {[%clk 0:00:14.2]} 45. Be2+ {[%clk 0:00:05.7]} 45... Kh4 {[%clk
0:00:14.1]} 46. Re7 {[%clk 0:00:06]} 46... g4 {[%clk 0:00:14.3]} 47. Rh7 {[%clk
0:00:06.1]} 47... Kxh5 {[%clk 0:00:14.4]} 48. Rg7 {[%clk 0:00:06.1]} 48... Kh4
{[%clk 0:00:14.4]} 49. Kd2 {[%clk 0:00:06.7]} 49... h5 {[%clk 0:00:14.9]} 50.
Ke3 {[%clk 0:00:07.2]} 50... Kg3 {[%clk 0:00:15.7]} 51. Ra7 {[%clk 0:00:06.3]}
51... h4 {[%clk 0:00:15.9]} 52. Ra1 {[%clk 0:00:07]} 52... h3 {[%clk 0:00:16.2]}
53. Rg1+ {[%clk 0:00:07.2]} 53... Kh4 {[%clk 0:00:15]} 54. Kf4 {[%clk
0:00:07.4]} 54... h2 {[%clk 0:00:14.3]} 55. Ra1 {[%clk 0:00:05]} 55... g3 {[%clk
0:00:13.7]} 0-1

[Event "*** SCC Grand Prix: Titled Tuesday Blitz"]
[Site "Chess.com"]
[Date "2020.06.02"]
[Round "4"]
[White "memer5334"]
[Black "witcher8"]
[Result "0-1"]
[WhiteElo "2215"]
[BlackElo "2433"]
[TimeControl "180+1"]
[EndTime "10:40:39 PDT"]
[Termination "witcher8 won by checkmate"]

1. d4 {[%clk 0:02:59.6]} 1... Nf6 {[%clk 0:02:58.8]} 2. c4 {[%clk 0:02:59.4]}
2... g6 {[%clk 0:02:59.1]} 3. Nc3 {[%clk 0:02:59.3]} 3... Bg7 {[%clk 0:02:59.7]}
4. Nf3 {[%clk 0:02:59.3]} 4... d6 {[%clk 0:03:00.6]} 5. e4 {[%clk 0:02:59.3]}
5... O-O {[%clk 0:03:00.7]} 6. Be3 {[%clk 0:02:59.1]} 6... e5 {[%clk 0:03:01.3]}
7. dxe5 {[%clk 0:02:58.9]} 7... dxe5 {[%clk 0:03:00.5]} 8. Qxd8 {[%clk 0:02:59]}
8... Rxd8 {[%clk 0:03:01.4]} 9. Bg5 {[%clk 0:02:59.5]} 9... Re8 {[%clk
0:03:00.1]} 10. Bxf6 {[%clk 0:02:58.7]} 10... Bxf6 {[%clk 0:02:59.8]} 11. Nd5
{[%clk 0:02:59.6]} 11... Bd8 {[%clk 0:02:59.9]} 12. O-O-O {[%clk 0:02:57.8]}
12... c6 {[%clk 0:02:54.8]} 13. Nc3 {[%clk 0:02:54.6]} 13... Bf6 {[%clk
0:02:44.4]} 14. h3 {[%clk 0:02:54.5]} 14... Be6 {[%clk 0:02:38.9]} 15. Be2
{[%clk 0:02:54.3]} 15... Nd7 {[%clk 0:02:37.6]} 16. b4 {[%clk 0:02:42]} 16... a5
{[%clk 0:02:35.7]} 17. a3 {[%clk 0:02:38.3]} 17... axb4 {[%clk 0:02:32.9]} 18.
axb4 {[%clk 0:02:39.2]} 18... Nb6 {[%clk 0:02:30.3]} 19. Nd2 {[%clk 0:02:34.9]}
19... Bg5 {[%clk 0:02:18.9]} 20. Kc2 {[%clk 0:02:22.8]} 20... Bxd2 {[%clk
0:02:09.2]} 21. Rxd2 {[%clk 0:02:23.7]} 21... Bxc4 {[%clk 0:02:04.8]} 22. Bxc4
{[%clk 0:02:21.8]} 22... Nxc4 {[%clk 0:02:05.7]} 23. Rd7 {[%clk 0:02:21.4]}
23... b5 {[%clk 0:01:55.6]} 24. Rhd1 {[%clk 0:02:17.9]} 24... Rac8 {[%clk
0:01:28.9]} 25. Ra7 {[%clk 0:02:13.3]} 25... Red8 {[%clk 0:01:28.4]} 26. Rxd8+
{[%clk 0:02:06.2]} 26... Rxd8 {[%clk 0:01:29.3]} 27. Rc7 {[%clk 0:02:06.4]}
27... Rd2+ {[%clk 0:01:28.8]} 28. Kc1 {[%clk 0:02:06.9]} 28... Rxf2 {[%clk
0:01:24.3]} 29. Rxc6 {[%clk 0:02:07.3]} 29... Rxg2 {[%clk 0:00:55.6]} 30. Nxb5
{[%clk 0:02:07]} 30... Nd2 {[%clk 0:00:55.8]} 31. Rc8+ {[%clk 0:02:03.1]} 31...
Kg7 {[%clk 0:00:55.6]} 32. Nd6 {[%clk 0:02:02.8]} 32... Nb3+ {[%clk 0:00:49.7]}
33. Kb1 {[%clk 0:02:03.2]} 33... Rd2 {[%clk 0:00:45.5]} 34. Ne8+ {[%clk
0:02:01]} 34... Kh6 {[%clk 0:00:45.7]} 35. b5 {[%clk 0:01:58.9]} 35... Rd7
{[%clk 0:00:35.3]} 36. Nf6 {[%clk 0:01:53.9]} 36... Rb7 {[%clk 0:00:33.1]} 37.
Ng4+ {[%clk 0:01:48.7]} 37... Kg7 {[%clk 0:00:33.1]} 38. Kb2 {[%clk 0:01:38.2]}
38... Rxb5 {[%clk 0:00:32.8]} 39. Ka3 {[%clk 0:01:37.6]} 39... h5 {[%clk
0:00:31.5]} 40. Ne3 {[%clk 0:01:35.6]} 40... Nd4 {[%clk 0:00:28.3]} 41. Nd5
{[%clk 0:01:36]} 41... Rb3+ {[%clk 0:00:28]} 42. Ka4 {[%clk 0:01:35.2]} 42...
Rxh3 {[%clk 0:00:28.9]} 43. Kb4 {[%clk 0:01:33.2]} 43... Rh4 {[%clk 0:00:25.9]}
44. Kc5 {[%clk 0:01:30.1]} 44... Rxe4 {[%clk 0:00:24.6]} 45. Nc7 {[%clk
0:01:27.9]} 45... h4 {[%clk 0:00:22]} 46. Kd5 {[%clk 0:01:28.2]} 46... Re1
{[%clk 0:00:21]} 47. Ne8+ {[%clk 0:01:28.7]} 47... Kh6 {[%clk 0:00:19.4]} 48.
Nf6 {[%clk 0:01:29.3]} 48... Kg5 {[%clk 0:00:19.7]} 49. Ne4+ {[%clk 0:01:29]}
49... Kf4 {[%clk 0:00:19.1]} 50. Nc5 {[%clk 0:01:26.7]} 50... Ra1 {[%clk
0:00:16]} 51. Rh8 {[%clk 0:01:26]} 51... g5 {[%clk 0:00:15.6]} 52. Nd3+ {[%clk
0:01:25.3]} 52... Kg3 {[%clk 0:00:15.3]} 53. Nxe5 {[%clk 0:01:25.8]} 53... Nf3
{[%clk 0:00:13.9]} 54. Nxf7 {[%clk 0:01:25.5]} 54... g4 {[%clk 0:00:14.2]} 55.
Nh6 {[%clk 0:01:25.3]} 55... Ra5+ {[%clk 0:00:11.8]} 56. Ke4 {[%clk 0:01:25.2]}
56... Re5+ {[%clk 0:00:11.1]} 57. Kd3 {[%clk 0:01:25.8]} 57... h3 {[%clk
0:00:10.9]} 58. Rg8 {[%clk 0:01:23.4]} 58... Rd5+ {[%clk 0:00:08.3]} 59. Ke2
{[%clk 0:01:21.9]} 59... Re5+ {[%clk 0:00:06.9]} 60. Kd3 {[%clk 0:01:21.1]}
60... Rd5+ {[%clk 0:00:04.8]} 61. Ke2 {[%clk 0:01:21.1]} 61... Ne5 {[%clk
0:00:04.7]} 62. Nf5+ {[%clk 0:01:20.1]} 62... Kf4 {[%clk 0:00:04.7]} 63. Ne3
{[%clk 0:01:17.3]} 63... Ra5 {[%clk 0:00:03.4]} 64. Rf8+ {[%clk 0:01:17.3]}
64... Kg3 {[%clk 0:00:03.6]} 65. Nf5+ {[%clk 0:01:17.4]} 65... Kg2 {[%clk
0:00:02.3]} 66. Ne3+ {[%clk 0:01:15.9]} 66... Kg1 {[%clk 0:00:02.6]} 67. Rf1+
{[%clk 0:01:16]} 67... Kh2 {[%clk 0:00:02]} 68. Rf2+ {[%clk 0:01:12]} 68... Kg1
{[%clk 0:00:02.3]} 69. Rf1+ {[%clk 0:01:08]} 69... Kh2 {[%clk 0:00:02.4]} 70.
Rf5 {[%clk 0:01:07.8]} 70... Ra2+ {[%clk 0:00:02]} 71. Kf1 {[%clk 0:01:06.1]}
71... Nf3 {[%clk 0:00:01.9]} 72. Nxg4+ {[%clk 0:01:06.2]} 72... Kg3 {[%clk
0:00:02]} 73. Ne3 {[%clk 0:00:41.6]} 73... Rf2# {[%clk 0:00:01.6]} 0-1